fUST/lending_fUST_20250512
["ID","MTS","AMOUNT","RATE_DAILY","PERIOD"]
[360778176,1747011038561,-400.0,0.00021917,2]
[360778177,1747011038570,-548.3924817,0.00021917,2]
[360778178,1747011038580,-152.533425,0.00021917,2]
[360778179,1747011038589,-152.533425,0.00021917,2]
[360778180,1747011038599,-152.533425,0.00021917,2]
[360778181,1747011038608,-152.533425,0.00021917,2]
[360778182,1747011038617,-151.0,0.00021917,2]
[360778183,1747011038627,-151.0,0.00021917,2]
[360778184,1747011038637,-400.0,0.00021917,2]
[360778185,1747011038648,-370.605349,0.00021917,2]
[360778186,1747011038657,-151.0,0.00021917,2]
[360778187,1747011038666,-370.605349,0.00021917,2]
[360778188,1747011038675,-500.0,0.00021917,2]
[360778189,1747011038685,-500.0,0.00021917,2]
[360778190,1747011038697,-500.0,0.00021917,2]
[360778191,1747011038707,-500.0,0.00021917,2]
[360778192,1747011038716,-500.0,0.00021917,2]
[360778193,1747011038726,-500.0,0.00021917,2]
[360778194,1747011038738,-500.0,0.00021917,2]
[360778195,1747011038747,-500.0,0.00021917,2]
[360778196,1747011038756,-500.0,0.00021917,2]
[360778197,1747011038766,-500.0,0.00021917,2]
[360778198,1747011038775,-500.0,0.00021917,2]
[360778199,1747011038784,-400.0,0.00021917,2]
[360778200,1747011038794,-160.0,0.00021917,2]
[360778201,1747011038803,-1627.38,0.00021917,2]
[360778202,1747011038812,-1126.84,0.00021917,2]
[360778203,1747011038821,-400.0,0.00021917,2]
[360778204,1747011038831,-400.0,0.00021917,2]
[360778205,1747011038840,-282.63,0.00021917,2]
[360778206,1747011038849,-532.1,0.00021917,2]
[360778207,1747011038859,-151.0,0.00021917,2]
[360778208,1747011038869,-155.346914,0.00021917,2]
[360778209,1747011038878,-735.19,0.00021917,2]
[360778210,1747011038887,-400.0,0.00021917,2]
[360778211,1747011038897,-582.29,0.00021917,2]
[360778212,1747011038906,-1619.34,0.00021917,2]
[360778213,1747011038915,-961.43,0.00021917,2]
[360778214,1747011038924,-291.280783,0.00021918,2]
[360778215,1747011038933,-291.280783,0.00021918,2]
[360778216,1747011038943,-268.172939,0.00021918,2]
[360778217,1747011038952,-268.172939,0.00021918,2]
[360778218,1747011038962,-268.172939,0.00021918,2]
[360778219,1747011038971,-268.172939,0.00021918,2]
[360778220,1747011038981,-268.172939,0.00021918,2]
[360778221,1747011038990,-268.172939,0.00021918,2]
[360778222,1747011038999,-268.172939,0.00021918,2]
[360778223,1747011039009,-268.172939,0.00021918,2]
[360778224,1747011039018,-268.172939,0.00021918,2]
[360778225,1747011039027,-268.172939,0.00021918,2]
[360778226,1747011039037,-268.172939,0.00021918,2]
[360778227,1747011039046,-268.172939,0.00021918,2]
[360778228,1747011039056,-268.172939,0.00021918,2]
[360778229,1747011039065,-268.172939,0.00021918,2]
[360778230,1747011039076,-268.172939,0.00021918,2]
[360778231,1747011039085,-268.172939,0.00021918,2]
[360778232,1747011039094,-268.172939,0.00021918,2]
[360778233,1747011039103,-268.172939,0.00021918,2]
[360778234,1747011039112,-1305.9625391,0.00021918,7]
[360778235,1747011039122,-151.0,0.00021918,2]
[360778236,1747011039131,-151.0,0.00021918,2]
[360778237,1747011039141,-155.624774,0.00021918,2]
[360778238,1747011039150,-259.0,0.00021918,3]
[360778239,1747011039159,-150.0,0.00021918,2]
[360778240,1747011039169,-400.0,0.00021918,2]
[360778241,1747011039178,-2746.0,0.00021918,2]
[360778242,1747011039187,-151.0,0.00021918,7]
[360778243,1747011039196,-151.0,0.00021969,7]
[360778244,1747011039206,-151.0,0.00021969,7]
[360778245,1747011039215,-151.0,0.00021969,7]
[360778246,1747011039226,-151.0,0.00021969,7]
[360778247,1747011039236,-526.457913,0.00021969,7]
[360778248,1747011039246,-151.0,0.00021973,7]
[360778249,1747011039255,-268.172939,0.00021973,7]
[360778250,1747011039265,-268.172942,0.00021973,7]
[360778252,1747011039274,-199.092725,0.0002199,7]
[360778253,1747011039284,-199.092725,0.0002199,7]
[360778254,1747011039293,-424.491282,0.0002199,7]
[360778255,1747011039303,-424.491282,0.0002199,7]
[360778256,1747011039312,-151.0,0.0002199,7]
[360778257,1747011039322,-151.0,0.0002199,7]
[360778258,1747011039331,-368.732594,0.0002199,7]
[360778259,1747011039341,-368.732594,0.0002199,7]
[360778260,1747011039351,-849.806368,0.0002199,7]
[360778261,1747011039361,-849.806368,0.0002199,7]
[360778262,1747011039371,-151.0,0.0002199,7]
[360778263,1747011039380,-151.0,0.0002199,7]
[360778264,1747011039389,-151.0,0.0002199,7]
[360778266,1747011039399,-151.0,0.0002199,7]
[360778268,1747011039408,-151.0,0.0002199,7]
[360778269,1747011039417,-151.0,0.0002199,7]
[360778272,1747011039427,-151.0,0.0002199,7]
[360778274,1747011039436,-151.0,0.0002199,7]
[360778276,1747011039446,-344.164919,0.0002199,7]
[360778277,1747011039455,-151.0,0.0002199,7]
[360778278,1747011039465,-344.164919,0.0002199,7]
[360778280,1747011039474,-160.0,0.0002199,7]
[360778282,1747011039484,-151.0,0.0002199,7]
[360778284,1747011039493,-289.573822,0.0002199,7]
[360778286,1747011039503,-154.159913,0.0002199,7]
[360778288,1747011039512,-198.713294,0.0002199,7]
[360778290,1747011039521,-198.713294,0.0002199,7]
[360778292,1747011039533,-2092.314111,0.0002199,2]
[360778294,1747011039543,-152.774598,0.0002199,7]
[360778297,1747011039552,-2092.314111,0.0002199,2]
[360778299,1747011039562,-152.533425,0.0002199,7]
[360778300,1747011039571,-152.533425,0.0002199,7]
[360778302,1747011039580,-151.0,0.0002199,7]
[360778304,1747011039590,-821.402153,0.0002199,7]
[360778307,1747011039600,-821.402153,0.0002199,7]
[360778310,1747011039610,-997.71092301,0.0002199,7]
[360778312,1747011039620,-212.1539542,0.0002199,7]
[360778314,1747011039629,-169.949334,0.00022,2]
[360778316,1747011039638,-500.0,0.00022,2]
[360778318,1747011039648,-349.41024524,0.00022,2]
[360778320,1747011039657,-164.75594587,0.00022,10]
[360778322,1747011039666,-1150.0,0.00022,2]
[360778324,1747011039676,-151.0,0.00022,7]
[360778326,1747011039686,-325.0,0.00022,2]
[360778328,1747011039697,-404.0,0.00022,2]
[360778330,1747011039709,-2586.46677994,0.00022,30]
[360778331,1747011039719,-2062.18934393,0.00022038,6]
[360778333,1747011039728,-157.76,0.00022191,2]
[360778336,1747011039739,-151.0,0.00022191,7]
[360778339,1747011039748,-151.0,0.00022191,7]
[360778342,1747011039757,-151.697383,0.00022191,7]
[360778345,1747011039767,-228.984425,0.00022191,7]
[360778348,1747011039778,-198.713294,0.00022191,7]
[360778350,1747011039788,-198.713294,0.00022191,7]
[360778353,1747011039797,-2092.314111,0.00022191,2]
[360778356,1747011039807,-2092.314111,0.00022191,2]
[360778359,1747011039816,-152.533425,0.00022191,7]
[360778362,1747011039825,-152.533425,0.00022191,7]
[360778365,1747011039834,-151.0,0.00022191,7]
[360778367,1747011039843,-400.0,0.00022191,2]
[360778370,1747011039853,-370.605349,0.00022191,7]
[360778372,1747011039863,-370.605349,0.00022191,7]
[360778375,1747011039873,-500.0,0.00022191,2]
[360778377,1747011039882,-400.0,0.00022191,2]
[360778380,1747011039892,-1627.38,0.00022191,2]
[360778382,1747011039901,-1126.84,0.00022191,2]
[360778385,1747011039910,-532.1,0.00022191,2]
[360778387,1747011039920,-151.0,0.00022191,7]
[360778390,1747011039929,-735.19,0.00022191,2]
[360778392,1747011039938,-400.0,0.00022191,2]
[360778395,1747011039947,-582.29,0.00022191,2]
[360778397,1747011039956,-1619.34,0.00022191,2]
[360778400,1747011039966,-961.43,0.00022191,2]
[360778402,1747011039976,-192.443613,0.00022383,7]
[360778405,1747011039987,-192.443613,0.00022383,7]
[360778408,1747011039997,-151.0,0.00022383,7]
[360778410,1747011040007,-207.234946,0.00022417,7]
[360778413,1747011040017,-151.0,0.00022465,7]
[360778415,1747011040026,-400.0,0.00022465,2]
[360778418,1747011040035,-500.0,0.00022465,2]
[360778420,1747011040044,-400.0,0.00022465,2]
[360778423,1747011040054,-1627.38,0.00022465,2]
[360778426,1747011040063,-1126.84,0.00022465,2]
[360778428,1747011040073,-532.1,0.00022465,2]
[360778431,1747011040083,-735.19,0.00022465,2]
[360778434,1747011040092,-400.0,0.00022465,2]
[360778436,1747011040102,-582.29,0.00022465,2]
[360778439,1747011040111,-1619.34,0.00022465,2]
[360778442,1747011040121,-961.43,0.00022465,2]
[360778443,1747011040132,-2062.18934393,0.00022486,7]
[360778447,1747011040142,-467.401136,0.00022603,2]
[360778449,1747011040152,-158.592897,0.00022603,7]
[360778452,1747011040162,-199.092725,0.00022616,7]
[360778454,1747011040171,-199.092725,0.00022616,7]
[360778457,1747011040181,-151.0,0.00022616,7]
[360778460,1747011040191,-151.0,0.00022616,7]
[360778462,1747011040200,-849.806368,0.00022616,7]
[360778465,1747011040210,-849.806368,0.00022616,7]
[360778468,1747011040220,-151.0,0.00022616,7]
[360778471,1747011040230,-151.0,0.00022616,7]
[360778473,1747011040241,-151.0,0.00022616,7]
[360778476,1747011040251,-151.0,0.00022616,7]
[360778477,1747011040260,-151.0,0.00022616,7]
[360778481,1747011040270,-151.0,0.00022616,7]
[360778482,1747011040279,-2092.314111,0.00022616,2]
[360778485,1747011040288,-2092.314111,0.00022616,2]
[360778487,1747011040298,-152.533425,0.00022616,7]
[360778489,1747011040308,-152.533425,0.00022616,7]
[360778491,1747011040317,-151.0,0.00022616,7]
[360778493,1747011040326,-821.402153,0.00022616,7]
[360778494,1747011040335,-821.402153,0.00022616,7]
[360778496,1747011040345,-198.713294,0.00022696,7]
[360778498,1747011040354,-198.713294,0.00022696,7]
[360778499,1747011040363,-2000.0,0.0002271,4]
[360778502,1747011040372,-424.491282,0.00022739,7]
[360778505,1747011040383,-424.491282,0.00022739,7]
[360778506,1747011040392,-368.732594,0.00022739,7]
[360778508,1747011040401,-368.732594,0.00022739,7]
[360778510,1747011040411,-344.164919,0.00022739,7]
[360778511,1747011040421,-344.164919,0.00022739,7]
[360778513,1747011040430,-151.0,0.00022739,7]
[360778515,1747011040440,-400.0,0.00022739,2]
[360778516,1747011040449,-500.0,0.00022739,2]
[360778517,1747011040459,-400.0,0.00022739,2]
[360778518,1747011040468,-1627.38,0.00022739,2]
[360778519,1747011040477,-1126.84,0.00022739,2]
[360778520,1747011040487,-532.1,0.00022739,2]
[360778521,1747011040496,-735.19,0.00022739,2]
[360778522,1747011040506,-264.49,0.00022739,2]
[360778523,1747011040516,-582.29,0.00022739,2]
[360778525,1747011040526,-1619.34,0.00022739,2]
[360778527,1747011040536,-961.43,0.00022739,2]
[360778529,1747011040545,-199.092725,0.00022773,7]
[360778531,1747011040555,-199.092725,0.00022773,7]
[360778533,1747011040566,-424.491282,0.00022773,7]
[360778535,1747011040575,-424.491282,0.00022773,7]
[360778537,1747011040584,-151.0,0.00022773,7]
[360778538,1747011040593,-151.0,0.00022773,7]
[360778540,1747011040602,-368.732594,0.00022773,7]
[360778542,1747011040611,-368.732594,0.00022773,7]
[360778547,1747011040650,-849.806368,0.00022773,7]
[360778549,1747011040659,-849.806368,0.00022773,7]
[360778551,1747011040668,-151.0,0.00022773,7]
[360778552,1747011040677,-151.0,0.00022773,7]
[360778553,1747011040687,-151.0,0.00022773,7]
[360778554,1747011040698,-151.0,0.00022773,7]
[360778555,1747011040710,-344.164919,0.00022773,7]
[360778556,1747011040718,-245.0,0.00022773,7]
[360778557,1747011040728,-344.164919,0.00022773,7]
[360778558,1747011040737,-151.0,0.00022773,7]
[360778559,1747011040747,-198.713294,0.00022773,7]
[360778560,1747011040757,-198.713294,0.00022773,7]
[360778561,1747011040766,-2092.314111,0.00022773,2]
[360778562,1747011040777,-2092.31410637,0.00022773,2]
[360778563,1747011040786,-152.533425,0.00022773,7]
[360778564,1747011040795,-152.533416,0.00022773,7]
[360778565,1747011040804,-151.0,0.00022773,7]
[360778566,1747011040813,-370.605349,0.00022773,7]
[360778567,1747011040822,-370.605349,0.00022773,7]
[360778568,1747011040832,-821.402153,0.00022773,7]
[360778569,1747011040841,-821.402153,0.00022773,7]
[360778570,1747011040850,-151.0,0.00022773,7]
[360778571,1747011040860,-146186.07208714,0.00022773,15]
[360778572,1747011040870,-287.497375,0.00022796,7]
[360778573,1747011040879,-2000.0,0.000228,5]
[360778574,1747011040888,-151.0,0.00022817,7]
[360778575,1747011040897,-997.71092301,0.0002282,7]
[360778576,1747011040907,-151.0,0.00022848,7]
[360778577,1747011040919,-160.0,0.00022892,2]
[360778578,1747011040929,-160.0,0.00022892,2]
[360778579,1747011040938,-160.0,0.00022895,2]
[360778580,1747011040947,-151.6780484,0.000229,2]
[360778581,1747011040957,-2062.18934393,0.00022934,8]
[360778582,1747011040968,-160.0,0.00023,3]
[360778583,1747011040977,-247.48296107,0.00023,2]
[360778584,1747011040988,-1333.60993437,0.00023,2]
[360778585,1747011040997,-200.0,0.00023,2]
[360778586,1747011041007,-325.676071,0.00023013,7]
[360778587,1747011041016,-291.280783,0.00023013,7]
[360778588,1747011041026,-291.280783,0.00023013,7]
[360778589,1747011041035,-151.0,0.00023013,7]
[360778590,1747011041045,-192.443613,0.00023013,7]
[360778591,1747011041054,-192.443613,0.00023013,7]
[360778592,1747011041064,-151.0,0.00023013,7]
[360778593,1747011041073,-400.0,0.00023013,2]
[360778594,1747011041082,-500.0,0.00023013,2]
[360778595,1747011041091,-400.0,0.00023013,2]
[360778596,1747011041101,-1627.38,0.00023013,2]
[360778597,1747011041111,-1126.84,0.00023013,2]
[360778598,1747011041120,-532.1,0.00023013,2]
[360778599,1747011041129,-735.19,0.00023013,2]
[360778600,1747011041138,-582.29,0.00023013,2]
[360778601,1747011041148,-1619.34,0.00023013,2]
[360778602,1747011041158,-961.43,0.00023013,2]
[360778603,1747011041167,-900.0,0.0002306,2]
[360778604,1747011041176,-151.0,0.00023111,7]
[360778605,1747011041185,-151.0,0.00023111,7]
[360778606,1747011041195,-4660.25561244,0.00023111,2]
[360778607,1747011041204,-151.0,0.00023111,7]
[360778608,1747011041213,-198.713294,0.00023111,7]
[360778610,1747011041223,-198.713285,0.00023111,7]
[360778612,1747011041233,-329.939574,0.00023132,7]
[360778614,1747011041244,-329.939574,0.00023132,7]
[360778616,1747011041253,-151.0,0.00023132,7]
[360778618,1747011041263,-151.0,0.00023132,7]
[360778620,1747011041272,-155.0,0.00023144,2]
[360778622,1747011041282,-212.1539542,0.000232,7]
[360778623,1747011041292,-215.0738,0.0002327,2]
[360778625,1747011041301,-151.0,0.00023287,7]
[360778627,1747011041310,-151.0,0.00023287,7]
[360778628,1747011041320,-526.457913,0.00023287,7]
[360778629,1747011041330,-199.092725,0.00023287,7]
[360778630,1747011041339,-199.092725,0.00023287,7]
[360778631,1747011041349,-424.491282,0.00023287,7]
[360778632,1747011041358,-424.491282,0.00023287,7]
[360778633,1747011041367,-151.0,0.00023287,7]
[360778634,1747011041376,-151.0,0.00023287,7]
[360778635,1747011041386,-368.732594,0.00023287,7]
[360778636,1747011041395,-368.732594,0.00023287,7]
[360778637,1747011041404,-849.806368,0.00023287,7]
[360778638,1747011041414,-849.806368,0.00023287,7]
[360778639,1747011041424,-151.0,0.00023287,7]
[360778640,1747011041433,-151.0,0.00023287,7]
[360778641,1747011041443,-400.0,0.00023287,2]
[360778642,1747011041453,-500.0,0.00023287,2]
[360778643,1747011041462,-400.0,0.00023287,2]
[360778644,1747011041472,-160.0,0.00023287,2]
[360778645,1747011041482,-1627.38,0.00023287,2]
[360778646,1747011041493,-1126.84,0.00023287,2]
[360778647,1747011041503,-532.1,0.00023287,2]
[360778648,1747011041512,-735.19,0.00023287,2]
[360778649,1747011041522,-582.29,0.00023287,2]
[360778650,1747011041531,-1619.34,0.00023287,2]
[360778651,1747011041540,-961.43,0.00023287,2]
[360778652,1747011041550,-151.0,0.000233,7]
[360778653,1747011041559,-821.402153,0.000233,7]
[360778654,1747011041568,-821.402153,0.000233,7]
[360778655,1747011041578,-1612.152002,0.000233,2]
[360778656,1747011041587,-1000.0,0.00023379,2]
[360778657,1747011041597,-1000.0,0.00023379,2]
[360778658,1747011041607,-1000.0,0.00023379,2]
[360778659,1747011041616,-1000.0,0.00023379,2]
[360778660,1747011041625,-1000.0,0.00023379,2]
[360778661,1747011041635,-2062.18934393,0.00023383,9]
[360778662,1747011041645,-151.0,0.00023383,7]
[360778663,1747011041654,-344.164919,0.00023383,7]
[360778664,1747011041663,-344.164919,0.00023383,7]
[360778665,1747011041673,-1500.0,0.00023383,14]
[360778666,1747011041682,-1500.0,0.00023383,14]
[360778667,1747011041692,-1500.0,0.00023383,14]
[360778668,1747011041709,-1500.0,0.00023383,14]
[360778669,1747011041719,-1500.0,0.00023383,14]
[360778670,1747011041729,-1500.0,0.00023383,14]
[360778671,1747011041742,-1500.0,0.00023383,14]
[360778672,1747011041755,-1500.0,0.00023383,14]
[360778673,1747011041766,-1500.0,0.00023383,14]
[360778674,1747011041780,-1500.0,0.00023383,14]
[360778675,1747011041791,-1500.0,0.00023383,14]
[360778676,1747011041802,-1500.0,0.00023383,14]
[360778677,1747011041811,-1500.0,0.00023383,14]
[360778678,1747011041821,-1500.0,0.00023383,14]
[360778679,1747011041831,-910.887751,0.00023383,14]
[360778680,1747011041840,-151.0,0.00023383,7]
[360778681,1747011041848,-819.52320226,0.00023421,2]
[360778682,1747011041860,-250.0,0.00023427,2]
[360778683,1747011041870,-151.0,0.00023561,7]
[360778684,1747011041880,-151.0,0.00023561,7]
[360778685,1747011041889,-151.0,0.00023561,7]
[360778686,1747011041899,-192.443613,0.00023561,7]
[360778687,1747011041909,-192.443613,0.00023561,7]
[360778688,1747011041919,-151.0,0.00023561,7]
[360778689,1747011041929,-400.0,0.00023561,2]
[360778690,1747011041938,-370.605349,0.00023561,7]
[360778691,1747011041948,-370.605349,0.00023561,7]
[360778692,1747011041957,-500.0,0.00023561,2]
[360778693,1747011041967,-400.0,0.00023561,2]
[360778694,1747011041976,-1627.38,0.00023561,2]
[360778695,1747011041988,-1126.84,0.00023561,2]
[360778696,1747011041998,-532.1,0.00023561,2]
[360778697,1747011042008,-151.0,0.00023561,7]
[360778698,1747011042017,-735.19,0.00023561,2]
[360778699,1747011042027,-582.29,0.00023561,2]
[360778700,1747011042036,-1619.34,0.00023561,2]
[360778701,1747011042046,-961.43,0.00023561,2]
[360778702,1747011042056,-151.0,0.000236,7]
[360778703,1747011042068,-151.0,0.00023677,7]
[360778704,1747011042096,-634.86719,0.00023711,15]
[360778705,1747011042124,-320.41957425,0.0002374,2]
[360778706,1747011042147,-29463.97820351,0.0002374,2]
[360778707,1747011042169,-10785.29376044,0.0002374,2]
[360778708,1747011042196,-1000.0,0.000238,2]
[360778709,1747011042219,-151.0,0.00023831,7]
[360778710,1747011042249,-2062.18934393,0.00023831,10]
[360778711,1747011042277,-151.0,0.00023835,7]
[360778712,1747011042301,-151.0,0.00023835,7]
[360778713,1747011042324,-500.0,0.00023835,2]
[360778714,1747011042347,-400.0,0.00023835,2]
[360778715,1747011042360,-1627.38,0.00023835,2]
[360778716,1747011042370,-1126.84,0.00023835,2]
[360778717,1747011042379,-532.1,0.00023835,2]
[360778718,1747011042388,-735.19,0.00023835,2]
[360778719,1747011042398,-582.29,0.00023835,2]
[360778720,1747011042407,-1619.34,0.00023835,2]
[360778721,1747011042416,-961.43,0.00023835,2]
[360778722,1747011042427,-10153.17897525,0.0002388,2]
[360778723,1747011042436,-424.491282,0.000239,7]
[360778724,1747011042446,-424.491282,0.000239,7]
[360778725,1747011042455,-368.732594,0.000239,7]
[360778726,1747011042464,-368.732594,0.000239,7]
[360778727,1747011042474,-1751.6018478,0.000239,2]
[360778728,1747011042484,-169503.07797874,0.0002398,7]
[360778729,1747011042650,-186.0,0.000197,2]
[360778730,1747011042660,-186.0,0.000197,2]
[360778731,1747011042670,-1185.13358009,0.00022,23]
[360778732,1747011042683,-423.25047148,0.00022,23]
[360778733,1747011042698,-3647.92052878,0.00022,23]
[360778760,1747011042865,-248.61444742,0.00022,23]
[360778762,1747011042877,-645.71956274,0.00022,23]
[360778765,1747011042888,-187285.41471374,0.0002398,7]
[360778771,1747011042925,-166.0,0.00019178,2]
[360778773,1747011042935,-634.0,0.0002398,7]
[360778775,1747011042947,-501.27344913,0.0002398,7]
[360778813,1747011043251,-160.0,0.00022892,2]
[360778815,1747011043261,-642076.17908329,0.0002398,7]
[360778817,1747011043271,-199.092725,0.0002398,7]
[360778820,1747011043281,-199.092725,0.0002398,7]
[360778821,1747011043291,-424.491282,0.0002398,7]
[360778823,1747011043300,-424.491282,0.0002398,7]
[360778826,1747011043310,-151.0,0.0002398,7]
[360778828,1747011043319,-151.0,0.0002398,7]
[360778830,1747011043329,-368.732594,0.0002398,7]
[360778832,1747011043338,-368.732594,0.0002398,7]
[360778834,1747011043348,-849.806368,0.0002398,7]
[360778836,1747011043357,-849.806368,0.0002398,7]
[360778837,1747011043366,-151.0,0.0002398,7]
[360778839,1747011043376,-151.0,0.0002398,7]
[360778841,1747011043385,-151.0,0.0002398,7]
[360778843,1747011043395,-151.0,0.0002398,7]
[360778844,1747011043404,-344.164919,0.0002398,7]
[360778845,1747011043414,-344.164919,0.0002398,7]
[360778846,1747011043423,-151.0,0.0002398,7]
[360778847,1747011043433,-370.605349,0.0002398,7]
[360778848,1747011043442,-370.605349,0.0002398,7]
[360778849,1747011043451,-821.402153,0.0002398,7]
[360778850,1747011043461,-821.402153,0.0002398,7]
[360778851,1747011043471,-151.0,0.0002398,7]
[360778852,1747011043480,-1679.00177534,0.00024,2]
[360778853,1747011043491,-208.30971735,0.00024,120]
[360778854,1747011043501,-151.0,0.00024,14]
[360778855,1747011043511,-997.71092301,0.00024,7]
[360778856,1747011043521,-212.1539542,0.00024,3]
[360778857,1747011043531,-212.1539542,0.00024,7]
[360778858,1747011043540,-160.0,0.00024,7]
[360778859,1747011043550,-160.0,0.00024,7]
[360778860,1747011043559,-160.0,0.00024,7]
[360778861,1747011043569,-160.0,0.00024,7]
[360778862,1747011043578,-160.0,0.00024,7]
[360778863,1747011043587,-422.1676983,0.00024,7]
[360778864,1747011043598,-422.1676983,0.00024,7]
[360778865,1747011043607,-151.0,0.00024109,7]
[360778866,1747011043617,-325.676071,0.00024109,7]
[360778867,1747011043626,-291.280783,0.00024109,7]
[360778868,1747011043635,-291.280783,0.00024109,7]
[360778869,1747011043645,-157.458726,0.00024109,7]
[360778870,1747011043654,-500.0,0.00024109,2]
[360778871,1747011043664,-227.99000001,0.00024109,2]
[360778872,1747011043673,-1627.38,0.00024109,2]
[360778873,1747011043683,-1126.84,0.00024109,2]
[360778874,1747011043693,-532.1,0.00024109,2]
[360778875,1747011043706,-735.19,0.00024109,2]
[360778876,1747011043716,-582.29,0.00024109,2]
[360778877,1747011043725,-1619.34,0.00024109,2]
[360778878,1747011043735,-961.43,0.00024109,2]
[360778879,1747011043747,-212.1539542,0.00024198,2]
[360778880,1747011043757,-1000.0,0.000242,6]
[360778881,1747011043766,-2062.18934393,0.00024279,10]
[360778882,1747011043778,-151.0,0.000243,7]
[360778883,1747011043788,-151.0,0.00024383,7]
[360778884,1747011043798,-151.0,0.00024383,7]
[360778885,1747011043807,-192.443613,0.00024383,7]
[360778886,1747011043817,-192.443613,0.00024383,7]
[360778887,1747011043826,-151.0,0.00024383,7]
[360778888,1747011043836,-500.0,0.00024383,2]
[360778889,1747011043845,-1627.38,0.00024383,2]
[360778890,1747011043855,-1126.84,0.00024383,2]
[360778891,1747011043865,-532.1,0.00024383,2]
[360778892,1747011043875,-735.19,0.00024383,2]
[360778893,1747011043884,-582.29,0.00024383,2]
[360778894,1747011043894,-1619.34,0.00024383,2]
[360778895,1747011043904,-961.43,0.00024383,2]
[360778896,1747011043914,-151.0,0.00024552,7]
[360778897,1747011043924,-821.402153,0.00024552,7]
[360778898,1747011043933,-821.402153,0.00024552,7]
[360778899,1747011043944,-2000.0,0.00024631,4]
[360778900,1747011043954,-223.0315306,0.00024639,2]
[360778901,1747011043964,-151.0,0.00024651,7]
[360778902,1747011043973,-151.0,0.00024651,7]
[360778903,1747011043983,-151.0,0.00024651,7]
[360778904,1747011043993,-526.457913,0.00024651,7]
[360778905,1747011044003,-151.0,0.00024651,7]
[360778906,1747011044014,-199.092725,0.00024651,7]
[360778907,1747011044023,-199.092725,0.00024651,7]
[360778908,1747011044033,-424.491282,0.00024651,7]
[360778909,1747011044043,-424.491282,0.00024651,7]
[360778910,1747011044053,-151.0,0.00024651,7]
[360778911,1747011044063,-151.0,0.00024651,7]
[360778912,1747011044073,-368.732594,0.00024651,7]
[360778913,1747011044083,-368.732594,0.00024651,7]
[360778914,1747011044094,-849.806368,0.00024651,7]
[360778915,1747011044104,-849.806368,0.00024651,7]
[360778916,1747011044230,-151.0,0.00024651,7]
[360778917,1747011044247,-192.004206,0.00024651,7]
[360778918,1747011044257,-234.368266,0.00024651,7]
[360778919,1747011044266,-344.164919,0.00024651,7]
[360778920,1747011044275,-344.164919,0.00024651,7]
[360778921,1747011044284,-151.0,0.00024651,7]
[360778922,1747011044294,-370.605349,0.00024651,7]
[360778923,1747011044303,-370.605349,0.00024651,7]
[360778924,1747011044312,-151.0,0.00024651,7]
[360778925,1747011044322,-192.443613,0.00024657,7]
[360778926,1747011044331,-192.443613,0.00024657,7]
[360778927,1747011044340,-151.0,0.00024657,7]
[360778928,1747011044349,-200.77779797,0.00024657,2]
[360778929,1747011044358,-500.0,0.00024657,2]
[360778930,1747011044368,-160.0,0.00024657,2]